Workbook

Sheet 汇总
A1: 附表三
A2: 投标报价明细表
A3: 工程名称：铜山矿区大凹山-寒山水泥用石灰岩980万吨/年露天开采建设（电气)工程劳务分包
A4: 序号 | B4: 项目编码 | C4: 项目名称 | D4: 项目特征描述 | E4: 计量 单位 | F4: 工程量 | G4: 金额（元）
G5: 最高限价 | I5: 投标报价
G6: 单价 | H6: 合价 | I6: 单价 | J6: 合价
B7: 一 | C7: 附属零星土建
C8: 电缆桥架
A9: 1 | B9: 010101003001 | C9: 挖沟槽土方 | D9: 1.部位：电缆沟底 2.土壤类别：详见地勘报告 | E9: m3 | F9: 24.37 | G9: 3.09 | H9: =G9*F9 -> 75.30
A10: 2 | B10: 010103001001 | C10: 回填方 | D10: 1.部位：电缆沟周边 2.密实度要求：满足设计要求 | E10: m3 | F10: 9.99 | G10: 13.04 | H10: =G10*F10 -> 130.25
A11: 3 | B11: WB010101013001 | C11: 机械运土方 | D11: 1.运距：自定 | E11: m3 | F11: 12.88 | G11: 7.15 | H11: 92.07
A12: 4 | B12: WB010101011001 | C12: 人工清底 | D12: 1.部位：电缆沟底 2.土壤类别：详见地勘报告 | E12: m2 | F12: 25.65 | G12: 8.71 | H12: 223.33
A13: 5 | B13: 010404001001 | C13: 基础垫层 | D13: 1.部位：电缆沟基础底 2.混凝土强度等级：C15商品砼 | E13: m3 | F13: 1.76 | G13: 411.60 | H13: 724.41
A14: 6 | B14: 011702001001 | C14: 基础 | D14: 1.基础垫层模板 | E14: m2 | F14: 2.70 | G14: 38.14 | H14: 102.99
A15: 7 | B15: 010507003001 | C15: 地沟、电缆沟 | D15: 1.构件名称：电缆沟 2.混凝土强度等级：C30商品砼 3.抗渗等级P6 | E15: m3 | F15: 5.06 | G15: 464.00 | H15: 2347.85
A16: 8 | B16: 011702026001 | C16: 电缆沟、地沟 | D16: 1.电缆沟模板 | E16: m2 | F16: 41.85 | G16: 47.83 | H16: 2001.61
A17: 9 | B17: 010516002001 | C17: 预埋铁件 | D17: 1.部位：沟壁 2.材质：Q235B | E17: t | F17: 0.025 | G17: 7978.05 | H17: 199.45
A18: 10 | B18: 010904003001 | C18: 楼（地）面砂浆防水（防潮） | D18: 1.部位：电缆沟底 2.20厚1：2水泥砂浆（掺5%防水剂） | E18: m2 | F18: 10.80 | G18: 18.11 | H18: 195.63
A19: 11 | B19: 010903003001 | C19: 墙面砂浆防水（防潮） | D19: 1.部位：电缆沟内壁 2.20厚1：2水泥砂浆（掺5%防水剂） | E19: m2 | F19: 18.90 | G19: 21.83 | H19: 412.67
A20: 12 | B20: 010512008001 | C20: 沟盖板、井盖板 | D20: 1.构件名称：电缆沟盖板 2.混凝土强度等级：C25预制砼 3.图集02J331，B8-1大样 | E20: m3 | F20: 0.81 | G20: 551.89 | H20: 447.03
A21: 13 | B21: WB011702042001 | C21: 预制混凝土模板 | D21: 1.沟盖板模板 | E21: m2 | F21: 4.86 | G21: 38.68 | H21: 187.99
A22: 14 | B22: 010101004001 | C22: 挖基坑土方 | D22: 1.部位：钢支架基础底 2.土壤类别：详见地勘报告 | E22: m3 | F22: 633.26 | G22: =G9 -> 3.09 | H22: 1956.77
A23: 15 | B23: 010103001002 | C23: 回填方 | D23: 1.部位：钢支架基础周边 2.密实度要求：满足设计要求 | E23: m3 | F23: 549.91 | G23: =G10 -> 13.04 | H23: 7169.80
A24: 16 | B24: WB010101013002 | C24: 机械运土方 | D24: 1.运距：自定 | E24: m3 | F24: 12.87 | G24: 7.15 | H24: 92.00
A25: 17 | B25: WB010101011002 | C25: 人工清底 | D25: 1.部位：钢支架基础底 2.土壤类别：详见地勘报告 | E25: m2 | F25: 130.59 | G25: 8.71 | H25: 1137.01
A26: 18 | B26: 010404001002 | C26: 基础垫层 | D26: 1.部位：钢支架基础底 2.混凝土强度等级：C15商品砼 | E26: m3 | F26: 8.58 | G26: 411.60 | H26: 3531.49
A27: 19 | B27: 011702001002 | C27: 基础 | D27: 1.基础垫层模板 | E27: m2 | F27: 13.36 | G27: 38.14 | H27: 509.60
A28: 20 | B28: 010501003001 | C28: 独立基础 | D28: 1.构件名称：钢支架基础 2.混凝土强度等级：C30商品砼 3.含短柱 | E28: m3 | F28: 74.77 | G28: 442.67 | H28: 33098.40
A29: 21 | B29: 011702001003 | C29: 基础 | D29: 1.基础模板 | E29: m2 | F29: 173.60 | G29: 41.87 | H29: 7269.08
A30: 22 | B30: 010516001001 | C30: 螺栓 | D30: 1.部位：短柱顶 2.规格、材质：M24，Q355B | E30: t | F30: 0.347 | G30: 6017.76 | H30: 2088.16
A31: 23 | B31: 010515001001 | C31: 现浇构件钢筋 | D31: 1.钢筋种类、规格：HRB400 φ8 | E31: t | F31: 2.518 | G31: 5715.16 | H31: 14390.78
A32: 24 | B32: 010515001002 | C32: 现浇构件钢筋 | D32: 1.钢筋种类、规格：HRB400 φ14 | E32: t | F32: 1.131 | G32: 5586.03 | H32: 6317.80
A33: 25 | B33: 010515001003 | C33: 现浇构件钢筋 | D33: 1.钢筋种类、规格：HRB400 φ20 | E33: t | F33: 2.038 | G33: 5531.94 | H33: 11274.09
A34: 26 | B34: 010515001004 | C34: 现浇构件钢筋 | D34: 1.钢筋种类、规格：HRB400 φ25 | E34: t | F34: 0.530 | G34: 5532.96 | H34: 2932.47
A35: 27 | B35: 010515002001 | C35: 预制构件钢筋 | D35: 1.部位：电缆沟盖板内 2.钢筋种类、规格：HPB300 φ8 | E35: t | F35: 0.045 | G35: 6008.40 | H35: 270.38
A36: 28 | B36: 010515002002 | C36: 预制构件钢筋 | D36: 1.部位：电缆沟盖板内 2.钢筋种类、规格：HRB400 φ6.5 | E36: t | F36: 0.019 | G36: 5705.02 | H36: 108.40
A37: 29 | B37: 030307004001 | C37: 桁架、管廊、设备框架、单梁结构制作安装 | D37: 1.构件名称：电缆桥架 2.钢材品种、规格：Q235B 钢板 型钢等 3.含运输、运距自定 | E37: t | F37: 18.297 | G37: 9595.58 | H37: 175570.24
A38: 30 | B38: WB031211005001 | C38: 抛丸除锈 | D38: 1.部位：电缆桥架外表面 2.除锈等级：抛丸除锈Sa2.5级 | E38: kg | F38: 18297.00 | G38: 0.57 | H38: 10418.95
A39: 31 | B39: 031202003001 | C39: 一般钢结构防腐蚀 | D39: 1.部位：电缆桥架外表面 2.油漆品种、刷漆遍数：环氧石墨烯防腐涂料三底三面，干膜厚度≥160um | E39: kg | F39: 18297.00 | G39: 3.96 | H39: 72375.98
C40: 筛分间桥架立柱
A41: 32 | B41: 010501003002 | C41: 独立基础 | D41: 1.构件名称：支柱基础 2.混凝土强度等级：C30商品砼 3.参考图集04D701-3，第45页 | E41: m3 | F41: 0.23 | G41: 442.67 | H41: =G41*F41 -> 101.81
A42: 33 | B42: 011702001004 | C42: 基础 | D42: 1.基础模板 | E42: m2 | F42: 2.40 | G42: 41.87 | H42: 100.49
A43: 34 | B43: 010501006001 | C43: 设备基础 | D43: 1.部位：支柱基础顶 2.C35细石砼二次灌浆 | E43: m3 | F43: 0.01 | G43: 600.71 | H43: 6.01
A44: 35 | B44: 010516001002 | C44: 螺栓 | D44: 1.规格、材质：M18，Q235B | E44: t | F44: 0.005 | G44: 6017.76 | H44: 30.09
A45: 36 | B45: WB010603001001 | C45: 钢柱 | D45: 1.构件名称：桥架立柱 2.钢材品种、规格：Q235B 钢管 工字钢等 3.含运输、运距自定 | E45: t | F45: 0.228 | G45: 8211.52 | H45: 1872.23
A46: 37 | B46: WB031211005002 | C46: 抛丸除锈 | D46: 1.部位：立柱外表面 2.除锈等级：抛丸除锈Sa2.5级 | E46: kg | F46: 228.36 | G46: 0.57 | H46: 130.04
A47: 38 | B47: 031202003002 | C47: 一般钢结构防腐蚀 | D47: 1.部位：立柱外表面 2.油漆品种、刷漆遍数：环氧石墨烯防腐涂料三底三面，干膜厚度≥160um | E47: kg | F47: 228.36 | G47: 3.96 | H47: 903.31
C48: 电缆井
A49: 39 | B49: 040101003001 | C49: 挖基坑土方 | D49: 1.部位：电缆井底 2.土壤类别：详见地勘报告 | E49: m3 | F49: 1275.63 | G49: =G9 -> 3.09 | H49: 3941.70
A50: 40 | B50: 010103001003 | C50: 回填方 | D50: 1.部位：电缆井周边 2.密实度要求：满足设计要求 | E50: m3 | F50: 950.04 | G50: =G10 -> 13.04 | H50: 12386.75
A51: 41 | B51: WB010101013003 | C51: 机械运土方 | D51: 1.运距：自定 | E51: m3 | F51: 183.08 | G51: 7.15 | H51: 1308.73
A52: 42 | B52: WB010101011003 | C52: 人工清底 | D52: 1.部位：电缆井底 2.土壤类别：详见地勘报告 | E52: m2 | F52: 469.34 | G52: 8.71 | H52: 4086.41
A53: 43 | B53: 040601001001 | C53: 现浇混凝土沉井井壁及隔墙 | D53: 1.部位：电缆井底板底 2.混凝土强度等级：C15商品砼 | E53: m3 | F53: 22.04 | G53: 588.01 | H53: 12959.65
A54: 44 | B54: 041102028001 | C54: 现浇混凝土沉井井壁及隔墙模板 | D54: 1.井垫层模板 | E54: m2 | F54: 36.26 | G54: 36.93 | H54: 1339.25
A55: 45 | B55: 040601003001 | C55: 沉井混凝土底板 | D55: 1.混凝土强度等级：C30商品砼 2.图集07SD101-8 | E55: m3 | F55: 35.16 | G55: 476.57 | H55: 16756.22
A56: 46 | B56: 041102030001 | C56: 沉井混凝土底板模板 | D56: 1.电缆井底板模板 | E56: m2 | F56: 66.67 | G56: 54.33 | H56: 3622.09
A57: 47 | B57: 040601001002 | C57: 现浇混凝土沉井井壁及隔墙 | D57: 1.构件名称：井壁 2.混凝土强度等级：C30商品砼 3.图集07SD101-8 | E57: m3 | F57: 77.34 | G57: 495.48 | H57: 38320.22
A58: 48 | B58: 041102028002 | C58: 现浇混凝土沉井井壁及隔墙模板 | D58: 1.井壁模板 | E58: m2 | F58: 630.43 | G58: 85.84 | H58: 54113.73
A59: 49 | B59: 040601005001 | C59: 沉井混凝土顶板 | D59: 1.构件名称：井盖 2.混凝土强度等级：C30商品砼 3.图集07SD101-8 4.含小型手孔电缆井 | E59: m3 | F59: 22.29 | G59: 489.86 | H59: 10919.08
A60: 50 | B60: 041102029001 | C60: 沉井混凝土顶板模板 | D60: 1.井盖模板 | E60: m2 | F60: 50.51 | G60: 92.68 | H60: 4681.17
A61: 51 | B61: 040601003002 | C61: 沉井混凝土底板 | D61: 1.部位：小型手孔电缆井 2.混凝土强度等级：C25商品砼 3.图集07SD101-8 | E61: m3 | F61: 13.06 | G61: 466.68 | H61: 6094.85
A62: 52 | B62: 041102030002 | C62: 沉井混凝土底板模板 | D62: 1.小型手孔电缆井底板模板 | E62: m2 | F62: 38.45 | G62: 54.33 | H62: 2088.94
A63: 53 | B63: WB040504016001 | C63: 非定型井砌筑 | D63: 1.部位：小型手孔电缆井壁 2.Mb10专用砂浆砌筑MU10砌块 3.图集07SD101-8 | E63: m3 | F63: 18.18 | G63: 743.13 | H63: 13510.09
A64: 54 | B64: WB040504017001 | C64: 非定型井勾缝及抹灰 | D64: 1.部位：井壁内外 2.10厚1：2.5水泥砂浆抹面 | E64: m2 | F64: 174.80 | G64: 29.48 | H64: 5153.80
A65: 55 | B65: WB040601031001 | C65: 构筑物钢筋制作 | D65: 1.钢筋种类、规格：HPB300 φ8 | E65: t | F65: 0.052 | G65: 6752.53 | H65: 351.13
A66: 56 | B66: WB040601031002 | C66: 构筑物钢筋制作 | D66: 1.钢筋种类、规格：HPB300 φ10 | E66: t | F66: 0.020 | G66: 6740.96 | H66: 134.82
A67: 57 | B67: WB040601031003 | C67: 构筑物钢筋制作 | D67: 1.钢筋种类、规格：HRB400 φ8 | E67: t | F67: 0.324 | G67: 6328.60 | H67: 2050.47
A68: 58 | B68: WB040601031004 | C68: 构筑物钢筋制作 | D68: 1.钢筋种类、规格：HRB400 φ10 | E68: t | F68: 8.406 | G68: 5512.60 | H68: 46338.90
A69: 59 | B69: WB040601031005 | C69: 构筑物钢筋制作 | D69: 1.钢筋种类、规格：HRB400 φ12 | E69: t | F69: 1.820 | G69: 6014.15 | H69: 10945.75
A70: 60 | B70: WB040601031006 | C70: 构筑物钢筋制作 | D70: 1.钢筋种类、规格：HRB400 φ14 | E70: t | F70: 0.377 | G70: 6014.15 | H70: 2267.33
A71: 61 | B71: WB040601031007 | C71: 构筑物钢筋制作 | D71: 1.钢筋种类、规格：HRB400 φ18 | E71: t | F71: 0.373 | G71: 6024.55 | H71: 2247.16
A72: 62 | B72: 011705001001 | C72: 大型机械设备进出场及安拆 | D72: 1.机械设备名称：挖掘机 2.机械设备规格型号：自定 | E72: 台次 | F72: 1.00 | G72: 5327.80 | H72: 5327.80
A73: 63 | B73: 011705001002 | C73: 大型机械设备进出场及安拆 | D73: 1.机械设备名称：塔吊 2.机械设备规格型号：自定 | E73: 台次 | F73: 1.00 | G73: 6479.23 | H73: 6479.23
B74: 二 | C74: 201粗碎工序电气安装工程
A75: 1 | B75: 030409005001 | C75: 避雷网 | D75: 1.名称：避雷网敷设 2.材质：热镀锌 3.规格：Φ10圆钢 4.安装形式：沿支架敷设 5.其他：详见设计图纸及规范要求 | E75: m | F75: 95.00 | G75: 16.85 | H75: =G75*F75 -> 1601.01
A76: 2 | B76: 030409003001 | C76: 避雷引下线 | D76: 1.名称：避雷引下线敷设 2.材质：利用柱中两根主筋做防雷引下线 3.规格：详见设计图纸 4.安装部位：详见设计图纸 5.安装形式：详见设计图纸 6.其他：详见设计图纸及规范要求 | E76: m | F76: 100.00 | G76: 8.30 | H76: =G76*F76 -> 830.27
A77: 3 | B77: 030409003002 | C77: 避雷引下线 | D77: 1.名称：避雷引下线敷设 2.材质：利用钢柱做防雷引下线 3.规格：详见设计图纸 4.安装部位：详见设计图纸 5.安装形式：详见设计图纸 6.其他：详见设计图纸及规范要求 | E77: m | F77: 180.00 | G77: 1.55 | H77: 279.01
A78: 4 | B78: WB030409003001 | C78: 接地跨接线 | D78: 1.名称：接地跨接线安装 2.跨接方式：接地网 | E78: 10处 | F78: 2.2 | G78: 84.18 | H78: 185.20
A79: 5 | B79: 030409002001 | C79: 接地母线 | D79: 1.名称：接地母线敷设 2.材质：热镀锌 3.规格：扁钢-40×4 4.安装部位：户外 5.安装形式：详见设计图纸 6.其他：详见设计图纸及规范要求 | E79: m | F79: 350.00 | G79: 20.49 | H79: 7171.09
A80: 6 | B80: 030409002002 | C80: 接地母线 | D80: 1.名称：接地母线敷设 2.材质：热镀锌 3.规格：扁钢-40×4 4.安装部位：户内 5.安装形式：详见设计图纸 6.其他：详见设计图纸及规范要求 | E80: m | F80: 50.00 | G80: 8.48 | H80: 423.79
A81: 7 | B81: WB030409004001 | C81: 桩承台接地 | D81: 1.名称：桩承台接地 2.类型：≤3根桩，利用桩主筋 3.方式：详见设计图纸 4.其他：详见设计图纸及规范要求 | E81: 基 | F81: 16 | G81: 197.30 | H81: 3156.85
A82: 8 | B82: WB030409004002 | C82: 桩承台接地 | D82: 1.名称：桩承台接地 2.类型：≤7根桩，利用桩主筋 3.方式： 详见设计图纸 4.其他：详见设计图纸及规范要求 | E82: 基 | F82: 2 | G82: 278.48 | H82: 556.97
A83: 9 | B83: WB030409002001 | C83: 柱主筋与圈梁钢筋焊接 | D83: 1.名称：柱主筋与圈梁钢筋焊接 | E83: 处 | F83: 30 | G83: 26.17 | H83: 785.09
A84: 10 | B84: 030409008001 | C84: 等电位端子箱、测试板 | D84: 1.名称：接地连接片预埋 2.材质：详见设计图纸 3.规格：角钢63×63×5，L=100mm 4.其他：详见设计图纸及规范要求 | E84: 个 | F84: 38 | G84: 7.37 | H84: 280.10
A85: 11 | B85: 030414011001 | C85: 接地装置 | D85: 1.名称：接地系统调试 2.类别：接地网 | E85: 系统 | F85: 3 | G85: 555.56 | H85: 1666.67
A86: 12 | B86: 030404016001 | C86: 控制箱 | D86: 1.名称：1#胶带运输机现场控制箱安装 2.型号规格：详见设计图纸 3.安装方式：底边距地1.5m 4.接地 5.设备不进价 6.其他：详见设计图纸及规范要求 | E86: 台 | F86: 1 | G86: 173.43 | H86: 173.43
A87: 13 | B87: 030404019001 | C87: 控制开关 | D87: 1.名称：铁壳开关安装 2.型号规格:HH4-20/3 3.额定电流(A)：20A 3.安装方式：底边距地1.5m 4.接地 5.主材不进价 6.其他：详见设计图纸及规范要求 | E87: 个 | F87: 1 | G87: 43.39 | H87: 43.39
A88: 14 | B88: 030404019002 | C88: 控制开关 | D88: 1.名称：铁壳开关安装 2.型号规格:HH4-200/3 3.额定电流(A)：200A 3.安装方式：底边距地1.5m 4.接地 5.主材不进价 6.其他：详见设计图纸及规范要求 | E88: 个 | F88: 1 | G88: 43.39 | H88: 43.39
A89: 15 | B89: 030404017001 | C89: 配电箱 | D89: 1.名称：检修电源箱安装 2.型号规格：详见设计图纸 3.安装方式：底边距地1.5m 4.接地 5.设备不进价 6.其他：详见设计图纸及规范要求 | E89: 台 | F89: 2 | G89: 177.33 | H89: 354.65
A90: 16 | B90: 030407001001 | C90: 滑触线 | D90: 1.名称：安全滑触线安装 2.型号规格：DHG-4-16 3.材质：详见设计图纸 4.主材不进价 5.其他：详见设计图纸及规范要求 | E90: m | F90: 32.00 | G90: 26.29 | H90: 841.12
A91: 17 | B91: 030407001002 | C91: 滑触线 | D91: 1.名称：安全滑触线安装 2.型号规格：DHG-4-50 3.材质：详见设计图纸 4.主材不进价 5.其他：详见设计图纸及规范要求 | E91: m | F91: 172.00 | G91: 28.84 | H91: 4960.65
A92: 18 | B92: 030413001001 | C92: 铁构件 | D92: 1.名称：滑触线支架安装 2.材质：详见设计图纸 3.规格：详见设计图纸 4.主材不进价 5.其他：详见设计图纸及规范要求 | E92: t | F92: 0.060 | G92: 3332.07 | H92: 199.92
A93: 19 | B93: 030411003001 | C93: 桥架 | D93: 1.名称：电缆桥架安装 2.型号：DJ-P-01-206 3.规格：600×100 4.材质：铝合金 5.类型：梯式 6.接地 7.主材不进价 8.其他：详见设计图纸及规范要求 | E93: m | F93: 145.00 | G93: 29.57 | H93: 4287.15
A94: 20 | B94: 030411001001 | C94: 配管 | D94: 1.名称：保护管敷设 2.材质：镀锌钢管 3.规格：SC20 4.配置形式：暗配 5.接地 6.其他：详见设计图纸及规范要求 | E94: m | F94: 8.00 | G94: 5.47 | H94: 43.80
A95: 21 | B95: 030411001002 | C95: 配管 | D95: 1.名称：保护管敷设 2.材质：镀锌钢管 3.规格：SC40 4.配置形式：暗配 5.接地 6.其他：详见设计图纸及规范要求 | E95: m | F95: 2.00 | G95: 10.98 | H95: 21.96
A96: 22 | B96: 030411001003 | C96: 配管 | D96: 1.名称：保护管敷设 2.材质：镀锌钢管 3.规格：SC50 4.配置形式：暗配 5.接地 6.其他：详见设计图纸及规范要求 | E96: m | F96: 10.00 | G96: 12.76 | H96: 127.55
A97: 23 | B97: 030411001004 | C97: 配管 | D97: 1.名称：保护管敷设 2.材质：镀锌钢管 3.规格：SC100 4.配置形式：暗配 5.接地 6.其他：详见设计图纸及规范要求 | E97: m | F97: 35.00 | G97: 24.96 | H97: 873.52
A98: 24 | B98: 030411001005 | C98: 配管 | D98: 1.名称：保护管敷设 2.材质：镀锌钢管 3.规格：SC15 4.配置形式：明配 5.接地 6.其他：详见设计图纸及规范要求 | E98: m | F98: 360.00 | G98: 10.03 | H98: 3609.33
A99: 25 | B99: 030411001006 | C99: 配管 | D99: 1.名称：保护管敷设 2.材质：镀锌钢管 3.规格：SC20 4.配置形式：明配 5.接地 6.其他：详见设计图纸及规范要求 | E99: m | F99: 185.00 | G99: 10.49 | H99: 1940.21
A100: 26 | B100: 030411001007 | C100: 配管 | D100: 1.名称：保护管敷设 2.材质：镀锌钢管 3.规格：SC25 4.配置形式：明配 5.接地 6.其他：详见设计图纸及规范要求 | E100: m | F100: 45.00 | G100: 11.56 | H100: 520.18
A101: 27 | B101: 030411001008 | C101: 配管 | D101: 1.名称：保护管敷设 2.材质：镀锌钢管 3.规格：SC32 4.配置形式：明配 5.接地 6.其他：详见设计图纸及规范要求 | E101: m | F101: 25.00 | G101: 12.92 | H101: 323.00
A102: 28 | B102: 030411001009 | C102: 配管 | D102: 1.名称：保护管敷设 2.材质：镀锌钢管 3.规格：SC40 4.配置形式：明配 5.接地 6.其他：详见设计图纸及规范要求 | E102: m | F102: 35.00 | G102: 15.95 | H102: 558.39
A103: 29 | B103: 030411001010 | C103: 配管 | D103: 1.名称：保护管敷设 2.材质：镀锌钢管 3.规格：SC50 4.配置形式：明配 5.接地 6.其他：详见设计图纸及规范要求 | E103: m | F103: 35.00 | G103: 17.34 | H103: 606.87
A104: 30 | B104: 030411001011 | C104: 配管 | D104: 1.名称：保护管敷设 2.材质：镀锌钢管 3.规格：SC70 4.配置形式：明配 5.接地 6.其他：详见设计图纸及规范要求 | E104: m | F104: 32.00 | G104: 22.36 | H104: 715.53
A105: 31 | B105: 030411001012 | C105: 配管 | D105: 1.名称：保护管敷设 2.材质：镀锌钢管 3.规格：SC100 4.配置形式：明配 5.接地 6.其他：详见设计图纸及规范要求 | E105: m | F105: 65.00 | G105: 32.82 | H105: 2133.52
A106: 32 | B106: 030411001013 | C106: 配管 | D106: 1.名称：保护管敷设 2.材质：包塑金属软管 3.规格：DN20 4.配专用接头 5.其他：详见设计图纸及规范要求 | E106: m | F106: 10.00 | G106: 17.47 | H106: 174.71
A107: 33 | B107: 030411001014 | C107: 配管 | D107: 1.名称：保护管敷设 2.材质：包塑金属软管 3.规格：DN25 4.配专用接头 5.其他：详见设计图纸及规范要求 | E107: m | F107: 2.00 | G107: 19.66 | H107: 39.31
A108: 34 | B108: 030411001015 | C108: 配管 | D108: 1.名称：保护管敷设 2.材质：包塑金属软管 3.规格：DN32 4.配专用接头 5.其他：详见设计图纸及规范要求 | E108: m | F108: 2.00 | G108: 21.17 | H108: 42.35
A109: 35 | B109: 030411001016 | C109: 配管 | D109: 1.名称：保护管敷设 2.材质：包塑金属软管 3.规格：DN40 4.配专用接头 5.其他：详见设计图纸及规范要求 | E109: m | F109: 2.00 | G109: 24.35 | H109: 48.69
A110: 36 | B110: 030411001017 | C110: 配管 | D110: 1.名称：保护管敷设 2.材质：包塑金属软管 3.规格：DN50 4.配专用接头 5.其他：详见设计图纸及规范要求 | E110: m | F110: 3.00 | G110: 27.73 | H110: 83.18
A111: 37 | B111: 030411001018 | C111: 配管 | D111: 1.名称：保护管敷设 2.材质：包塑金属软管 3.规格：DN70 4.配专用接头 5.其他：详见设计图纸及规范要求 | E111: m | F111: 4.00 | G111: 27.73 | H111: 110.91
A112: 38 | B112: 030411001019 | C112: 配管 | D112: 1.名称：保护管敷设 2.材质：包塑金属软管 3.规格：DN100 4.配专用接头 5.其他：详见设计图纸及规范要求 | E112: m | F112: 7.00 | G112: 27.73 | H112: 194.10
A113: 39 | B113: 030408001001 | C113: 电力电缆 | D113: 1.名称：电力电缆敷设 2.型号规格：ZR-YJV-6/6kV-3×70 3.材质：铜芯 4.敷设方式、部位：桥架、穿管或电缆沟 5.电压等级（kV）：6/6kV 6.接地、固定及挂牌 7.防火堵洞 8.主材不进价 9.其他：详见设计图纸及规范要求 | E113: m | F113: 120.00 | G113: 7.31 | H113: 876.61
A114: 40 | B114: 030408001002 | C114: 电力电缆 | D114: 1.名称：电力电缆敷设 2.型号规格：ZR-YJV-0.6/1kV-4×4 3.材质：铜芯 4.敷设方式、部位：桥架、穿管或电缆沟 5.电压等级（kV）：0.6/1kV 6.接地、固定及挂牌 7.防火堵洞 8.主材不进价 9.其他：详见设计图纸及规范要求 | E114: m | F114: 230.00 | G114: 3.69 | H114: 847.67
A115: 41 | B115: 030408001003 | C115: 电力电缆 | D115: 1.名称：电力电缆敷设 2.型号规格：ZR-YJV-0.6/1kV-5×4 3.材质：铜芯 4.敷设方式、部位：桥架、穿管或电缆沟 5.电压等级（kV）：0.6/1kV 6.接地、固定及挂牌 7.防火堵洞 8.主材不进价 9.其他：详见设计图纸及规范要求 | E115: m | F115: 170.00 | G115: 4.23 | H115: 719.05
A116: 42 | B116: 030408001004 | C116: 电力电缆 | D116: 1.名称：电力电缆敷设 2.型号规格：ZR-YJV-0.6/1kV-5×6 3.材质：铜芯 4.敷设方式、部位：桥架、穿管或电缆沟 5.电压等级（kV）：0.6/1kV 6.接地、固定及挂牌 7.防火堵洞 8.主材不进价 9.其他：详见设计图纸及规范要求 | E116: m | F116: 116.00 | G116: 4.23 | H116: 490.64
A117: 43 | B117: 030408001005 | C117: 电力电缆 | D117: 1.名称：电力电缆敷设 2.型号规格：ZR-YJV-0.6/1kV-5×10 3.材质：铜芯 4.敷设方式、部位：桥架、穿管或电缆沟 5.电压等级（kV）：0.6/1kV 6.接地、固定及挂牌 7.防火堵洞 8.主材不进价 9.其他：详见设计图纸及规范要求 | E117: m | F117: 136.00 | G117: 4.23 | H117: 575.24
A118: 44 | B118: 030408001006 | C118: 电力电缆 | D118: 1.名称：电力电缆敷设 2.型号规格：ZR-YJV-0.6/1kV-4×16 3.材质：铜芯 4.敷设方式、部位：桥架、穿管或电缆沟 5.电压等级（kV）：0.6/1kV 6.接地、固定及挂牌 7.防火堵洞 8.主材不进价 9.其他：详见设计图纸及规范要求 | E118: m | F118: 110.00 | G118: 4.28 | H118: 470.71
A119: 45 | B119: 030408001007 | C119: 电力电缆 | D119: 1.名称：电力电缆敷设 2.型号规格：ZR-YJV-0.6/1kV-3×25+2×16 3.材质：铜芯 4.敷设方式、部位：桥架、穿管或电缆沟 5.电压等级（kV）：0.6/1kV 6.接地、固定及挂牌 7.防火堵洞 8.主材不进价 9.其他：详见设计图纸及规范要求 | E119: m | F119: 230.00 | G119: 6.13 | H119: 1410.88
A120: 46 | B120: 030408001008 | C120: 电力电缆 | D120: 1.名称：电力电缆敷设 2.型号规格：ZR-YJV-0.6/1kV-3×70+1×35 3.材质：铜芯 4.敷设方式、部位：桥架、穿管或电缆沟 5.电压等级（kV）：0.6/1kV 6.接地、固定及挂牌 7.防火堵洞 8.主材不进价 9.其他：详见设计图纸及规范要求 | E120: m | F120: 68.00 | G120: 7.31 | H120: 496.74
A121: 47 | B121: 030408001009 | C121: 电力电缆 | D121: 1.名称：电力电缆敷设 2.型号规格：ZR-YJV-0.6/1kV-3×120 3.材质：铜芯 4.敷设方式、部位：桥架、穿管或电缆沟 5.电压等级（kV）：0.6/1kV 6.接地、固定及挂牌 7.防火堵洞 8.主材不进价 9.其他：详见设计图纸及规范要求 | E121: m | F121: 255.00 | G121: 9.37 | H121: 2390.51
A122: 48 | B122: 030408001010 | C122: 电力电缆 | D122: 1.名称：电力电缆敷设 2.型号规格：ZR-YJV-0.6/1kV-3×120+2×70 3.材质：铜芯 4.敷设方式、部位：桥架、穿管或电缆沟 5.电压等级（kV）：0.6/1kV 6.接地、固定及挂牌 7.防火堵洞 8.主材不进价 9.其他：详见设计图纸及规范要求 | E122: m | F122: 112.00 | G122: 10.78 | H122: 1207.86
A123: 49 | B123: 030408006001 | C123: 电力电缆头 | D123: 1.名称：电力电缆终端头制安 2.型号规格：70mm2及以下 3.材质、类型：铜芯 热(冷)缩式 4.安装部位：室内 5.电压等级(kV)：10kV以下 6.接线、固定 7.其他：详见设计图纸及规范要求 | E123: 个 | F123: 4 | G123: 139.28 | H123: 557.13
A124: 50 | B124: 030408006002 | C124: 电力电缆头 | D124: 1.名称：电力电缆终端头制安 2.型号规格：10mm2及以下 3.材质、类型：铜芯 干包式 4.安装部位：室内 5.电压等级(kV)：1kV以下 6.接线、固定 7.其他：详见设计图纸及规范要求 | E124: 个 | F124: 16 | G124: 47.95 | H124: 767.25
A125: 51 | B125: 030408006003 | C125: 电力电缆头 | D125: 1.名称：电力电缆终端头制安 2.型号规格：16mm2及以下 3.材质、类型：铜芯 干包式 4.安装部位：室内 5.电压等级(kV)：1kV以下 6.接线、固定 7.其他：详见设计图纸及规范要求 | E125: 个 | F125: 2 | G125: 59.36 | H125: 118.73
A126: 52 | B126: 030408006004 | C126: 电力电缆头 | D126: 1.名称：电力电缆终端头制安 2.型号规格：35mm2及以下 3.材质、类型：铜芯 干包式 4.安装部位：室内 5.电压等级(kV)：1kV以下 6.接线、固定 7.其他：详见设计图纸及规范要求 | E126: 个 | F126: 6 | G126: 82.51 | H126: 495.05
A127: 53 | B127: 030408006005 | C127: 电力电缆头 | D127: 1.名称：电力电缆终端头制安 2.型号规格：70mm2及以下 3.材质、类型：铜芯 干包式 4.安装部位：室内 5.电压等级(kV)：1kV以下 6.接线、固定 7.其他：详见设计图纸及规范要求 | E127: 个 | F127: 4 | G127: 111.05 | H127: 444.21
A128: 54 | B128: 030408006006 | C128: 电力电缆头 | D128: 1.名称：电力电缆终端头制安 2.型号规格：120mm2及以下 3.材质、类型：铜芯 干包式 4.安装部位：室内 5.电压等级(kV)：1kV以下 6.接线、固定 7.其他：详见设计图纸及规范要求 | E128: 个 | F128: 10 | G128: 132.92 | H128: 1329.18
A129: 55 | B129: 030408002001 | C129: 控制电缆 | D129: 1.名称：控制电缆敷设 2.型号规格：ZR-KVV-0.45/0.75kV-2×1.5 3.材质：铜芯 4.敷设方式、部位：桥架、穿管或电缆沟 5.电压等级（kV）：0.45/0.75kV 6.接地、固定及挂牌 7.防火堵洞 8.主材不进价 9.其他：详见设计图纸及规范要求 | E129: m | F129: 65.00 | G129: 2.59 | H129: 168.28
A130: 56 | B130: 030408002002 | C130: 控制电缆 | D130: 1.名称：控制电缆敷设 2.型号规格：ZR-KVV-0.45/0.75kV-3×1.5 3.材质：铜芯 4.敷设方式、部位：桥架、穿管或电缆沟 5.电压等级（kV）：0.45/0.75kV 6.接地、固定及挂牌 7.防火堵洞 8.主材不进价 9.其他：详见设计图纸及规范要求 | E130: m | F130: 18.00 | G130: 2.59 | H130: 46.60
A131: 57 | B131: 030408002003 | C131: 控制电缆 | D131: 1.名称：控制电缆敷设 2.型号规格：ZR-KVV-0.45/0.75kV-14×1.5 3.材质：铜芯 4.敷设方式、部位：桥架、穿管或电缆沟 5.电压等级（kV）：0.45/0.75kV 6.接地、固定及挂牌 7.防火堵洞 8.主材不进价 9.其他：详见设计图纸及规范要求 | E131: m | F131: 110.00 | G131: 4.15 | H131: 456.20
A132: 58 | B132: 030408007001 | C132: 控制电缆头 | D132: 1.名称：控制电缆终端头制安 2.型号规格：6芯及以下 3.材质、类型：详见设计图纸及规范要求 4.安装方式：详见设计图纸 5.接线、固定 6.其他：详见设计图纸及规范要求 | E132: 个 | F132: 6 | G132: 48.57 | H132: 291.43
A133: 59 | B133: 030408007002 | C133: 控制电缆头 | D133: 1.名称：控制电缆终端头制安 2.型号规格：14芯及以下 3.材质、类型：详见设计图纸及规范要求 4.安装方式：详见设计图纸 5.接线、固定 6.其他：详见设计图纸及规范要求 | E133: 个 | F133: 2 | G133: 77.44 | H133: 154.87
A134: 60 | B134: 030411004001 | C134: 配线 | D134: 1.名称：导线敷设 2.型号规格：ZR-BV-0.45/0.75kV-2.5mm2 3.敷设方式：穿管 4.接线 5.其他：详见设计图纸及规范要求 | E134: m | F134: 1700.00 | G134: 0.81 | H134: 1373.62
A135: 61 | B135: 030404017002 | C135: 配电箱 | D135: 1.名称：照明配电箱+AL1 2.型号规格：详见设计图纸 3.安装方式：底边距地1.5米 4.接地 5.设备不进价 6.其他：详见设计图纸及规范要求 | E135: 台 | F135: 1 | G135: 137.28 | H135: 137.28
A136: 62 | B136: 030404017003 | C136: 配电箱 | D136: 1.名称：照明配电箱+AL3 2.型号规格：详见设计图纸 3.安装方式：底边距地1.5米 4.接地 5.设备不进价 6.其他：详见设计图纸及规范要求 | E136: 台 | F136: 1 | G136: 137.28 | H136: 137.28
A137: 63 | B137: 030404017004 | C137: 配电箱 | D137: 1.名称：照明配电箱+AL4 2.型号规格：详见设计图纸 3.安装方式：底边距地1.5米 4.接地 5.设备不进价 6.其他：详见设计图纸及规范要求 | E137: 台 | F137: 1 | G137: 137.28 | H137: 137.28
A138: 64 | B138: 030412002001 | C138: 工厂灯 | D138: 1.名称：节能投光灯安装 2.型号规格：GT311-XL30Ⅱ，1×30LED 3.安装形式：壁装式 4.主材不进价 5.其他：详见设计图纸及规范要求 | E138: 套 | F138: 12 | G138: 25.03 | H138: 300.38
A139: 65 | B139: 030412002002 | C139: 工厂灯 | D139: 1.名称：节能悬挂灯安装 2.型号规格：GC203-XL80A，1×80LED 3.安装形式：管吊式 4.主材不进价 5.其他：详见设计图纸及规范要求 | E139: 套 | F139: 14 | G139: 25.03 | H139: 350.45
A140: 66 | B140: 030412002003 | C140: 工厂灯 | D140: 1.名称：低悬挂固定灯具安装 2.型号规格：GC203-XL36A，1×36LED 3.安装形式：吸顶式 4.主材不进价 5.其他：详见设计图纸及规范要求 | E140: 套 | F140: 12 | G140: 25.03 | H140: =G140*F140 -> 300.38
A141: 67 | B141: 030411006001 | C141: 接线盒 | D141: 1.名称：接线盒安装 2.材质：钢制 3.规格：86型 4.安装形式：明装 | E141: 个 | F141: 45 | G141: 4.80 | H141: 215.94
A142: 68 | B142: 030404021001 | C142: 限位开关 | D142: 1.名称：跑偏开关安装 2.型号规格：详见设计图纸 3.主材不进价 4.其他：详见设计图纸及规范要求 | E142: 个 | F142: 8 | G142: 39.63 | H142: 317.00
A143: 69 | B143: 030604003001 | C143: 称重装置、皮带跑偏监测装置、电子秤标定 | D143: 1.名称：拉绳开关安装 2.型号规格：详见设计图纸 3.主材不进价 4.其他：详见设计图纸及规范要求 | E143: 台 | F143: 4 | G143: 873.43 | H143: 3493.70
A144: 70 | B144: 030604003002 | C144: 称重装置、皮带跑偏监测装置、电子秤标定 | D144: 1.名称：皮带跑偏检测 | E144: 台 | F144: 1 | G144: 788.33 | H144: 788.33
A145: 71 | B145: 030413001002 | C145: 铁构件 | D145: 1.名称：电缆桥架支架制作及安装 2.材质：热镀锌 3.规格：角钢或槽钢 4.如固定采用螺栓应为热镀锌螺栓 5.其他：详见设计图纸及规范要求 | E145: t | F145: 3.820 | G145: 6632.07 | H145: 25334.51
A146: 72 | B146: 030413001003 | C146: 铁构件 | D146: 1.名称：一般铁构件制作及安装 2.材质：热镀锌 3.规格：角钢或槽钢 4.如固定采用螺栓应为热镀锌螺栓 5.含灯具、配管、电缆沟支架等 6.其他：详见设计图纸及规范要求 | E146: t | F146: 0.650 | G146: 8002.43 | H146: 5201.58
A147: 73 | B147: 030406006001 | C147: 低压交流异步电动机 | D147: 1.名称：低压交流异步电动机检查接线 2.型号：详见图纸 3.容量(kW)：15kW及以下 4.启动方式：详见设计图纸 5.电压等级(kV)：1kV及以下 6.金属软管安装（配套塑料接头） | E147: 台 | F147: 1 | G147: 172.46 | H147: 172.46
A148: 74 | B148: 030406006002 | C148: 低压交流异步电动机 | D148: 1.名称：低压交流异步电动机检查接线 2.型号：详见图纸 3.容量(kW)：30kW及以下 4.启动方式：详见设计图纸 5.电压等级(kV)：1kV及以下 6.金属软管安装（配套塑料接头） | E148: 台 | F148: 1 | G148: 383.03 | H148: 383.03
A149: 75 | B149: WB030414009001 | C149: 低压交流异步电动机 | D149: 1.名称：低压交流异步电动机调试 2.型号：详见设计图纸 3.控制保护方式：带过流保护 | E149: 台 | F149: 2 | G149: 1024.20 | H149: 2048.40
A150: 76 | B150: WB030406002001 | C150: 中型、大型电动机 | D150: 1.名称：高压交流异步电动机检查接线 2.型号：详见图纸 3.容量(kW)：800kW及以下 4.启动方式：详见设计图纸 5.电压等级(kV)：10kV及以下 6.金属软管安装（配套塑料接头） | E150: 台 | F150: 2 | G150: 1260.69 | H150: 2521.39
A151: 77 | B151: WB030414010001 | C151: 高压交流异步电动机（一次设备） | D151: 1.名称：高压交流异步电动机调试 2.型号：详见图纸 3.功率(kW)：800kW 4.电压等级(kV)：10kV及以下 | E151: 台 | F151: 2 | G151: 1005.49 | H151: 2010.97
A152: 78 | B152: WB030414011001 | C152: 高压交流异步电动机（二次设备） | D152: 1.名称：高压交流异步电动机调试 2.型号：详见图纸 3.功率(kW)：800kW 4.控制保护方式：速断过流保护 | E152: 台 | F152: 2 | G152: 3132.52 | H152: 6265.05
B153: 三 | C153: 201（6）粗碎配电室电气安装工程
A154: 1 | B154: 030402017001 | C154: 高压成套配电柜 | D154: 1.名称：重锤反击破碎机高压启动柜安装 2.型号规格：详见设计图纸 3.接地 4.设备不进价 5.其他：详见设计图纸及规范要求 | E154: 台 | F154: 2 | G154: 451.09 | H154: =G154*F154 -> 902.18
A155: 2 | B155: 030404001001 | C155: 控制屏 | D155: 1.名称：重锤反击破碎机液阻启动柜安装 2.型号规格：详见设计图纸 3.接地 4.其他：详见设计图纸及规范要求 | E155: 台 | F155: 2 | G155: 632.97 | H155: 1265.94
A156: 3 | B156: 030404001002 | C156: 控制屏 | D156: 1.名称：重锤反击破碎机控制柜安装 2.型号规格：详见设计图纸 3.接地 4.其他：详见设计图纸及规范要求 | E156: 台 | F156: 2 | G156: 365.25 | H156: 730.51
A157: 4 | B157: WB030402004001 | C157: 低压成套配电柜 | D157: 1.名称：低压开关柜安装 2.型号规格：详见设计图纸 3.接地 4.其他：详见设计图纸及规范要求 | E157: 台 | F157: 5 | G157: 609.55 | H157: 3047.76
A158: 5 | B158: 030403003001 | C158: 带形母线 | D158: 1.名称：低压开关柜母线安装 2.型号规格：TMY-80×6.3 3.其他：详见设计图纸及规范要求 | E158: m | F158: 16.00 | G158: 17.25 | H158: 275.98
A159: 6 | B159: 030403003002 | C159: 带形母线 | D159: 1.名称：低压开关柜母线安装 2.型号规格：TMY-50×5 3.其他：详见设计图纸及规范要求 | E159: m | F159: 4.00 | G159: 17.25 | H159: 68.99
A160: 7 | B160: WB030413004001 | C160: 基础槽钢 | D160: 1.名称：基础槽钢制作及安装 2.材质：热镀锌 3.规格：10#槽钢 4.接地 | E160: m | F160: 31.00 | G160: 13.75 | H160: 426.33
A161: 8 | B161: 030411001020 | C161: 配管 | D161: 1.名称：保护管敷设 2.材质：镀锌钢管 3.规格：SC15 4.配置形式：暗配 5.接地 6.其他：详见设计图纸及规范要求 | E161: m | F161: 20.00 | G161: 5.38 | H161: 107.51
A162: 9 | B162: 030411001021 | C162: 配管 | D162: 1.名称：保护管敷设 2.材质：镀锌钢管 3.规格：SC25 4.配置形式：暗配 5.接地 6.其他：详见设计图纸及规范要求 | E162: m | F162: 10.00 | G162: 6.52 | H162: 65.22
A163: 10 | B163: 030411001022 | C163: 配管 | D163: 1.名称：保护管敷设 2.材质：镀锌钢管 3.规格：SC50 4.配置形式：暗配 5.接地 6.其他：详见设计图纸及规范要求 | E163: m | F163: 10.00 | G163: 12.76 | H163: 127.55
A164: 11 | B164: 030411001023 | C164: 配管 | D164: 1.名称：保护管敷设 2.材质：镀锌钢管 3.规格：SC100 4.配置形式：暗配 5.接地 6.其他：详见设计图纸及规范要求 | E164: m | F164: 10.00 | G164: 24.96 | H164: 249.58
A165: 12 | B165: 030411001024 | C165: 配管 | D165: 1.名称：保护管敷设 2.材质：镀锌钢管 3.规格：SC25 4.配置形式：明配 5.接地 6.其他：详见设计图纸及规范要求 | E165: m | F165: 18.00 | G165: 11.56 | H165: 208.07
A166: 13 | B166: 030411001025 | C166: 配管 | D166: 1.名称：保护管敷设 2.材质：镀锌钢管 3.规格：SC50 4.配置形式：明配 5.接地 6.其他：详见设计图纸及规范要求 | E166: m | F166: 2.00 | G166: 17.34 | H166: 34.68
A167: 14 | B167: 030411001026 | C167: 配管 | D167: 1.名称：保护管敷设 2.材质：镀锌钢管 3.规格：SC100 4.配置形式：明配 5.接地 6.其他：详见设计图纸及规范要求 | E167: m | F167: 2.00 | G167: 32.82 | H167: 65.65
A168: 15 | B168: 030411001027 | C168: 配管 | D168: 1.名称：保护管敷设 2.材质：包塑金属软管 3.规格：DN25 4.配专用接头 5.其他：详见设计图纸及规范要求 | E168: m | F168: 3.00 | G168: 19.66 | H168: 58.97
A169: 16 | B169: 030411001028 | C169: 配管 | D169: 1.名称：保护管敷设 2.材质：包塑金属软管 3.规格：DN50 4.配专用接头 5.其他：详见设计图纸及规范要求 | E169: m | F169: 1.00 | G169: 27.73 | H169: 27.73
A170: 17 | B170: 030411001029 | C170: 配管 | D170: 1.名称：保护管敷设 2.材质：包塑金属软管 3.规格：DN100 4.配专用接头 5.其他：详见设计图纸及规范要求 | E170: m | F170: 1.00 | G170: 27.73 | H170: 27.73
A171: 18 | B171: 030411001030 | C171: 配管 | D171: 1.名称：保护管敷设 2.材质：硬塑料管 3.规格：PC20 4.配置形式：暗配 5.其他：详见设计图纸及规范要求 | E171: m | F171: 260.00 | G171: 4.27 | H171: 1110.44
A172: 19 | B172: 030411001031 | C172: 配管 | D172: 1.名称：保护管敷设 2.材质：硬塑料管 3.规格：PC25 4.配置形式：暗配 5.其他：详见设计图纸及规范要求 | E172: m | F172: 40.00 | G172: 4.49 | H172: 179.41
A173: 20 | B173: 030408001011 | C173: 电力电缆 | D173: 1.名称：电力电缆敷设 2.型号规格：ZR-YJV-0.6/1kV-3×4 3.材质：铜芯 4.敷设方式、部位：桥架、穿管或电缆沟 5.电压等级（kV）：0.6/1kV 6.接地、固定及挂牌 7.防火堵洞 8.主材不进价 9.其他：详见设计图纸及规范要求 | E173: m | F173: 20.00 | G173: 3.69 | H173: 73.71
A174: 21 | B174: 030408001012 | C174: 电力电缆 | D174: 1.名称：电力电缆敷设 2.型号规格：ZR-YJV-0.6/1kV-5×6 3.材质：铜芯 4.敷设方式、部位：桥架、穿管或电缆沟 5.电压等级（kV）：0.6/1kV 6.接地、固定及挂牌 7.防火堵洞 8.主材不进价 9.其他：详见设计图纸及规范要求 | E174: m | F174: 75.00 | G174: 4.23 | H174: 317.23
A175: 22 | B175: 030408001013 | C175: 电力电缆 | D175: 1.名称：电力电缆敷设 2.型号规格：ZR-YJV-0.6/1kV-3×25+2×16 3.材质：铜芯 4.敷设方式、部位：桥架、穿管或电缆沟 5.电压等级（kV）：0.6/1kV 6.接地、固定及挂牌 7.防火堵洞 8.主材不进价 9.其他：详见设计图纸及规范要求 | E175: m | F175: 135.00 | G175: 6.13 | H175: 828.13
A176: 23 | B176: 030408001014 | C176: 电力电缆 | D176: 1.名称：电力电缆敷设 2.型号规格：ZR-YJV-0.6/1kV-3×70+2×35 3.材质：铜芯 4.敷设方式、部位：桥架、穿管或电缆沟 5.电压等级（kV）：0.6/1kV 6.接地、固定及挂牌 7.防火堵洞 8.主材不进价 9.其他：详见设计图纸及规范要求 | E176: m | F176: 36.00 | G176: 8.40 | H176: 302.46
A177: 24 | B177: 030408001015 | C177: 电力电缆 | D177: 1.名称：电力电缆敷设 2.型号规格：ZR-YJV-0.6/1kV-3×120+2×70 3.材质：铜芯 4.敷设方式、部位：桥架、穿管或电缆沟 5.电压等级（kV）：0.6/1kV 6.接地、固定及挂牌 7.防火堵洞 8.主材不进价 9.其他：详见设计图纸及规范要求 | E177: m | F177: 30.00 | G177: 10.78 | H177: 323.53
A178: 25 | B178: 030408006007 | C178: 电力电缆头 | D178: 1.名称：电力电缆终端头制安 2.型号规格：10mm2及以下 3.材质、类型：铜芯 干包式 4.安装部位：室内 5.电压等级(kV)：1kV以下 6.接线、固定 7.其他：详见设计图纸及规范要求 | E178: 个 | F178: 8 | G178: 47.95 | H178: 383.62
A179: 26 | B179: 030408006008 | C179: 电力电缆头 | D179: 1.名称：电力电缆终端头制安 2.型号规格：35mm2及以下 3.材质、类型：铜芯 干包式 4.安装部位：室内 5.电压等级(kV)：1kV以下 6.接线、固定 7.其他：详见设计图纸及规范要求 | E179: 个 | F179: 10 | G179: 82.51 | H179: 825.08
A180: 27 | B180: 030408006009 | C180: 电力电缆头 | D180: 1.名称：电力电缆终端头制安 2.型号规格：70mm2及以下 3.材质、类型：铜芯 干包式 4.安装部位：室内 5.电压等级(kV)：1kV以下 6.接线、固定 7.其他：详见设计图纸及规范要求 | E180: 个 | F180: 4 | G180: 111.05 | H180: 444.21
A181: 28 | B181: 030408006010 | C181: 电力电缆头 | D181: 1.名称：电力电缆终端头制安 2.型号规格：120mm2及以下 3.材质、类型：铜芯 干包式 4.安装部位：室内 5.电压等级(kV)：1kV以下 6.接线、固定 7.其他：详见设计图纸及规范要求 | E181: 个 | F181: 6 | G181: 132.92 | H181: 797.51
A182: 29 | B182: 030408002004 | C182: 控制电缆 | D182: 1.名称：控制电缆敷设 2.型号规格：ZR-RVVP-0.45/0.75kV-2×1.5 3.材质：铜芯 4.敷设方式、部位：桥架、穿管或电缆沟 5.电压等级（kV）：0.45/0.75kV 6.接地、固定及挂牌 7.防火堵洞 8.主材不进价 9.其他：详见设计图纸及规范要求 | E182: m | F182: 56.00 | G182: 2.59 | H182: 144.98
A183: 30 | B183: 030408002005 | C183: 控制电缆 | D183: 1.名称：控制电缆敷设 2.型号规格：ZR-RVV-0.45/0.75kV-2×1.5 3.材质：铜芯 4.敷设方式、部位：桥架、穿管或电缆沟 5.电压等级（kV）：0.45/0.75kV 6.接地、固定及挂牌 7.防火堵洞 8.主材不进价 9.其他：详见设计图纸及规范要求 | E183: m | F183: 36.00 | G183: 2.59 | H183: 93.20
A184: 31 | B184: 030408002006 | C184: 控制电缆 | D184: 1.名称：控制电缆敷设 2.型号规格：ZR-RVV-0.45/0.75kV-5×1.5 3.材质：铜芯 4.敷设方式、部位：桥架、穿管或电缆沟 5.电压等级（kV）：0.45/0.75kV 6.接地、固定及挂牌 7.防火堵洞 8.主材不进价 9.其他：详见设计图纸及规范要求 | E184: m | F184: 75.00 | G184: 2.59 | H184: 194.17
A185: 32 | B185: 030408002007 | C185: 控制电缆 | D185: 1.名称：控制电缆敷设 2.型号规格：ZR-RVV-0.45/0.75kV-7×1.5 3.材质：铜芯 4.敷设方式、部位：桥架、穿管或电缆沟 5.电压等级（kV）：0.45/0.75kV 6.接地、固定及挂牌 7.防火堵洞 8.主材不进价 9.其他：详见设计图纸及规范要求 | E185: m | F185: 40.00 | G185: 4.15 | H185: 165.89
A186: 33 | B186: 030408002008 | C186: 控制电缆 | D186: 1.名称：控制电缆敷设 2.型号规格：ZR-RVV-0.45/0.75kV-10×1.5 3.材质：铜芯 4.敷设方式、部位：桥架、穿管或电缆沟 5.电压等级（kV）：0.45/0.75kV 6.接地、固定及挂牌 7.防火堵洞 8.主材不进价 9.其他：详见设计图纸及规范要求 | E186: m | F186: 32.00 | G186: 4.15 | H186: 132.71
A187: 34 | B187: 030408007003 | C187: 控制电缆头 | D187: 1.名称：控制电缆终端头制安 2.型号规格：6芯及以下 3.材质、类型：详见设计图纸及规范要求 4.安装方式：详见设计图纸 5.接线、固定 6.其他：详见设计图纸及规范要求 | E187: 个 | F187: 16 | G187: 48.57 | H187: 777.14
A188: 35 | B188: 030408007004 | C188: 控制电缆头 | D188: 1.名称：控制电缆终端头制安 2.型号规格：14芯及以下 3.材质、类型：详见设计图纸及规范要求 4.安装方式：详见设计图纸 5.接线、固定 6.其他：详见设计图纸及规范要求 | E188: 个 | F188: 8 | G188: 77.44 | H188: 619.50
A189: 36 | B189: 030411004002 | C189: 配线 | D189: 1.名称：导线敷设 2.型号规格：ZR-BV-0.45/0.75kV-2.5mm2 3.敷设方式：穿管 4.接线 5.其他：详见设计图纸及规范要求 | E189: m | F189: 380.00 | G189: 0.81 | H189: 307.04
A190: 37 | B190: 030411004003 | C190: 配线 | D190: 1.名称：导线敷设 2.型号规格：ZR-BV-0.45/0.75kV-4mm2 3.敷设方式：穿管 4.接线 5.其他：详见设计图纸及规范要求 | E190: m | F190: 170.00 | G190: 0.59 | H190: 99.52
A191: 38 | B191: 030411004004 | C191: 配线 | D191: 1.名称：导线敷设 2.型号规格：NH-RVS-0.45/0.75kV-2*2.5mm2 3.敷设方式：穿管 4.接线 5.其他：详见设计图纸及规范要求 | E191: m | F191: 140.00 | G191: 0.82 | H191: 115.43
A192: 39 | B192: 030404017005 | C192: 配电箱 | D192: 1.名称：照明配电箱+AL2 2.型号规格：详见设计图纸 3.安装方式：底边距地1.5米 4.接地 5.设备不进价 6.其他：详见设计图纸及规范要求 | E192: 台 | F192: 1 | G192: 137.28 | H192: 137.28
A193: 40 | B193: 030404017006 | C193: 配电箱 | D193: 1.名称：照明配电箱+AL3 2.型号规格：详见设计图纸 3.安装方式：底边距地1.5米 4.接地 5.设备不进价 6.其他：详见设计图纸及规范要求 | E193: 台 | F193: 1 | G193: 137.28 | H193: 137.28
A194: 41 | B194: WB030904012001 | C194: A型应急照明集中电源 | D194: 1.名称：消防应急照明配电箱+ALE 2.型号规格：详见设计图纸 3.安装方式：底边距地1.4米 4.接地 5.设备不进价 6.其他：详见设计图纸及规范要求 | E194: 台 | F194: 1 | G194: 137.28 | H194: 137.28
A195: 42 | B195: 030412005001 | C195: 荧光灯 | D195: 1.名称：固定式悬挂灯安装 2.型号规格：GFD6110-XL36，1×36LED，配套蓄电池，放电时间≥30min 3.安装形式：链吊式 4.主材不进价 5.其他：详见设计图纸及规范要求 | E195: 套 | F195: 3 | G195: 23.52 | H195: 70.57
A196: 43 | B196: 030412005002 | C196: 荧光灯 | D196: 1.名称：固定式悬挂灯安装 2.型号规格：GFD6110-XL36，1×36LED 3.安装形式：链吊式 4.主材不进价 5.其他：详见设计图纸及规范要求 | E196: 套 | F196: 8 | G196: 23.52 | H196: 188.18
A197: 44 | B197: WB030904013001 | C197: 智能照明灯/指示灯 | D197: 1.名称：A型消防应急照明灯安装 2.型号规格：TY-ZFJC系列 12W，1×12LED 3.安装形式：壁装式 4.主材不进价 5.其他：详见设计图纸及规范要求 | E197: 套 | F197: 10 | G197: 28.31 | H197: 283.05
A198: 45 | B198: WB030904013002 | C198: 智能照明灯/指示灯 | D198: 1.名称：A型消防安全出口标志安装 2.型号规格：TY-BLJC系列 1W，1×1LED 3.安装形式：壁装式 4.主材不进价 5.其他：详见设计图纸及规范要求 | E198: 套 | F198: 3 | G198: 28.31 | H198: 84.92
A199: 46 | B199: WB030904013003 | C199: 智能照明灯/指示灯 | D199: 1.名称：A型疏散方向指示灯安装 2.型号规格：TY-BLJC系列 1W，1×1LED 3.安装形式：壁装式 4.主材不进价 5.其他：详见设计图纸及规范要求 | E199: 套 | F199: 4 | G199: 28.31 | H199: 113.22
A200: 47 | B200: 030404034001 | C200: 照明开关 | D200: 1.名称：单联单控暗开关安装 2.材质：详见设计图纸 3.规格：250V，10A 4.安装方式：距地1.4米，暗装 | E200: 个 | F200: 2 | G200: 5.19 | H200: 10.37
... 776 more rows
